[Event "Kupreichik Memorial Rapid 2019"]
[Site "Minsk"]
[Date "2019.08.16"]
[Round "7.15"]
[White "Naumovich, Yaroslav"]
[Black "Kochetkov, Vitali"]
[Result "1/2-1/2"]
[ECO "D15"]
[WhiteElo "1868"]
[BlackElo "2266"]
[Annotator "NA"]
[PlyCount "108"]
[EventDate "2019.08.15"]
[EventType "swiss"]
[EventCountry "BLR"]
[SourceTitle "playchess.com"]
[Source "ChessBase"]
[SourceQuality "1"]
[TimeControl "900+10"]

1. Nf3 {[%emt 0:00:00]} d5 {[%emt 0:00:00]} 2. d4 {[%emt 0:00:00]} Nf6 {[%emt 0:00:00]} 3. c4 {[%emt 0:00:00]} c6 {[%emt 0:00:05]} 4. Nc3 {[%emt 0:00:00]} a6 {[%emt 0:00:03]} 5. a4 {[%emt 0:00:00]} g6 {[%emt 0:00:26]} 6. g3 {[%emt 0:00:00]} Bg7 {[%emt 0:00:01]} 7. Bg2 {[%emt 0:00:01]} O-O {[%emt 0:00:08]} 8. O-O {[%emt 0:00:01]} Ne4 {[%emt 0:00:44]} 9. cxd5 {[%emt 0:01:04]} Nxc3 {[%emt 0:00:29]} 10. bxc3 {[%emt 0:00:01]} cxd5 {[%emt 0:00:02]} 11. Bf4 {[%emt 0:00:13]} Nc6 {[%emt 0:00:20]} 12. Ne5 {[%emt 0:01:38]} Na5 {[%emt 0:00:09]} 13. e4 {[%emt 0:00:31]} Be6 {[%emt 0:00:40]} 14. Rb1 {[%emt 0:01:04]} Rc8 {[%emt 0:00:24]} 15. Qc2 {[%emt 0:01:09]} dxe4 {[%emt 0:01:50]} 16. Bxe4 {[%emt 0:00:16]} Bd5 {[%emt 0:00:05]} 17. Rfc1 {[%emt 0:01:19]} e6 {[%emt 0:01:55]} 18. Qe2 {[%emt 0:01:38]} Bxe4 {[%emt 0:00:46]} 19. Qxe4 {[%emt 0:00:03]} Qd5 {[%emt 0:00:01]} 20. Qxd5 {[%emt 0:00:39]} exd5 {[%emt 0:00:01]} 21. Nd3 {[%emt 0:00:07]} Rfe8 {[%emt 0:00:55]} 22. Nc5 {[%emt 0:02:01]} Re7 {[%emt 0:00:11]} 23. Kf1 {[%emt 0:00:51]} h6 {[%emt 0:00:49]} 24. Re1 {[%emt 0:03:21]} Rxe1+ {[%emt 0:00:29]} 25. Kxe1 {[%emt 0:00:01]} g5 {[%emt 0:00:09]} 26. Bd6 {[%emt 0:02:55]} Rc6 {[%emt 0:00:33]} 27. Bb8 {[%emt 0:00:23]} Bf8 {[%emt 0:00:39]} 28. Nxb7 {[%emt 0:00:09]} Nxb7 {[%emt 0:00:49]} 29. Rxb7 {[%emt 0:00:00]} Rxc3 {[%emt 0:00:03]} 30. Rd7 {[%emt 0:00:16]} Ra3 {[%emt 0:00:53]} 31. Rxd5 {[%emt 0:00:05]} Rxa4 {[%emt 0:00:04]} 32. Rd8 {[%emt 0:00:06]} Kg7 {[%emt 0:00:47]} 33. Be5+ {[%emt 0:00:21]} f6 {[%emt 0:00:03]} 34. Bxf6+ {[%emt 0:00:02]} Kxf6 {[%emt 0:00:02]} 35. Rxf8+ {[%emt 0:00:01]} Kg6 {[%emt 0:00:26]} 36. d5 {[%emt 0:00:10]} Re4+ {[%emt 0:00:07]} 37. Kf1 {[%emt 0:00:05]} Rd4 {[%emt 0:00:03]} 38. Ra8 {[%emt 0:00:11]} Rxd5 {[%emt 0:00:20]} 39. Rxa6+ {[%emt 0:00:02]} Kg7 {[%emt 0:00:09]} 40. Kg2 {[%emt 0:00:09]} Rf5 {[%emt 0:00:11]} 41. f3 {[%emt 0:00:34]} Rb5 {[%emt 0:00:11]} 42. h4 {[%emt 0:00:13]} gxh4 {[%emt 0:00:26]} 43. gxh4 {[%emt 0:00:01]} Rb4 {[%emt 0:00:10]} 44. Kg3 {[%emt 0:00:05]} Rc4 {[%emt 0:00:01]} 45. h5 {[%emt 0:00:07]} Rb4 {[%emt 0:00:45]} 46. f4 {[%emt 0:00:06]} Rb1 {[%emt 0:00:34]} 47. Kg4 {[%emt 0:00:14]} Rh1 {[%emt 0:00:11]} 48. Ra7+ {[%emt 0:00:21]} Kg8 {[%emt 0:00:21]} 49. Re7 {[%emt 0:00:21]} Rh2 {[%emt 0:00:27]} 50. Ra7 {[%emt 0:00:10]} Rh1 {[%emt 0:00:02]} 51. Rb7 {[%emt 0:00:08]} Rg1+ 52. Kf5 Rh1 53. Kf6 Rg1 54. f5 Rg5 1/2-1/2

[Event "Kupreichik Memorial Rapid 2019"]
[Site "Minsk"]
[Date "2019.08.16"]
[Round "7.16"]
[White "Barskij, Vladimir"]
[Black "Khrapko, Marharyta"]
[Result "1-0"]
[ECO "B22"]
[WhiteElo "2389"]
[BlackElo "2073"]
[Annotator "NA"]
[PlyCount "105"]
[EventDate "2019.08.15"]
[EventType "swiss"]
[EventCountry "BLR"]
[SourceTitle "playchess.com"]
[Source "ChessBase"]
[SourceQuality "1"]
[TimeControl "900+10"]

1. e4 {[%emt 0:00:00]} c5 {[%emt 0:00:00]} 2. c3 {[%emt 0:00:00]} Nf6 {[%emt 0:00:00]} 3. e5 {[%emt 0:00:00]} Nd5 {[%emt 0:00:00]} 4. Nf3 {[%emt 0:00:00]} e6 {[%emt 0:00:04]} 5. d4 {[%emt 0:00:00]} Nc6 {[%emt 0:00:08]} 6. c4 {[%emt 0:00:31]} Ndb4 {[%emt 0:00:37]} 7. a3 {[%emt 0:03:20]} Qa5 {[%emt 0:00:03]} 8. Bd2 {[%emt 0:00:09]} Nxd4 {[%emt 0:00:10]} 9. Nxd4 {[%emt 0:00:04]} cxd4 {[%emt 0:00:02]} 10. f4 {[%emt 0:00:40]} d3 {[%emt 0:00:32]} 11. axb4 {[%emt 0:01:43]} Qxa1 {[%emt 0:00:02]} 12. Bc3 {[%emt 0:00:14]} d2+ {[%emt 0:01:24]} 13. Kf2 {[%emt 0:00:14]} a5 {[%emt 0:00:11]} 14. bxa5 {[%emt 0:00:08]} Bc5+ {[%emt 0:00:13]} 15. Kg3 {[%emt 0:00:02]} d6 {[%emt 0:00:57]} 16. b4 {[%emt 0:00:28]} Qa2 {[%emt 0:00:46]} 17. bxc5 {[%emt 0:00:02]} dxe5 {[%emt 0:00:07]} 18. fxe5 {[%emt 0:00:13]} Bd7 {[%emt 0:02:08]} 19. Bd3 {[%emt 0:00:22]} Rxa5 {[%emt 0:01:26]} 20. Bxa5 {[%emt 0:01:26]} Qxa5 {[%emt 0:00:02]} 21. Qxd2 {[%emt 0:00:21]} Qxc5 {[%emt 0:00:04]} 22. Re1 {[%emt 0:00:09]} f6 {[%emt 0:00:14]} 23. Qe3 {[%emt 0:00:30]} Qc7 {[%emt 0:00:17]} 24. Nc3 {[%emt 0:00:15]} O-O {[%emt 0:00:27]} 25. Nb5 {[%emt 0:00:23]} Bxb5 {[%emt 0:00:06]} 26. cxb5 {[%emt 0:00:02]} Rd8 {[%emt 0:00:09]} 27. Kf2 {[%emt 0:00:28]} f5 {[%emt 0:01:49]} 28. Rc1 {[%emt 0:01:58]} Qa5 {[%emt 0:00:21]} 29. Bc4 {[%emt 0:01:36]} Kf7 {[%emt 0:00:02]} 30. Kg1 {[%emt 0:00:31]} Qb4 {[%emt 0:00:08]} 31. h3 {[%emt 0:00:34]} Rd2 {[%emt 0:00:12]} 32. Qc3 {[%emt 0:00:51]} Qc5+ {[%emt 0:00:03]} 33. Kh1 {[%emt 0:00:09]} Qf2 {[%emt 0:00:06]} 34. Qf3 {[%emt 0:00:06]} Qxf3 {[%emt 0:00:44]} 35. gxf3 {[%emt 0:00:02]} Kg6 {[%emt 0:01:35]} 36. Bxe6 {[%emt 0:00:33]} Kg5 {[%emt 0:00:01]} 37. Rc4 {[%emt 0:00:30]} f4 {[%emt 0:01:16]} 38. Bc8 {[%emt 0:00:25]} h5 {[%emt 0:01:30]} 39. Rc1 {[%emt 0:01:16]} Re2 {[%emt 0:00:19]} 40. Bxb7 {[%emt 0:00:03]} Kh4 {[%emt 0:00:09]} 41. Rg1 {[%emt 0:00:48]} Rxe5 {[%emt 0:01:16]} 42. Bc6 {[%emt 0:00:01]} Re2 {[%emt 0:00:39]} 43. Rxg7 {[%emt 0:00:09]} Kxh3 {[%emt 0:00:06]} 44. Bd7+ {[%emt 0:00:06]} Kh4 {[%emt 0:00:01]} 45. Rg2 {[%emt 0:00:35]} Re1+ {[%emt 0:00:09]} 46. Rg1 {[%emt 0:00:04]} Re2 {[%emt 0:00:11]} 47. Rb1 {[%emt 0:00:19]} Kg3 {[%emt 0:00:45]} 48. b6 {[%emt 0:00:01]} Rh2+ {[%emt 0:00:12]} 49. Kg1 {[%emt 0:00:01]} Rg2+ {[%emt 0:00:05]} 50. Kf1 {[%emt 0:00:01]} Rh2 {[%emt 0:00:05]} 51. Rb3 {[%emt 0:00:07]} Rh1+ {[%emt 0:01:23]} 52. Ke2 {[%emt 0:00:01]} Rh2+ {[%emt 0:00:10]} 53. Kd1 {[%emt 0:00:06]} 1-0

[Event "Kupreichik Memorial Rapid 2019"]
[Site "Minsk"]
[Date "2019.08.16"]
[Round "7.17"]
[White "Kiryliuk, Ilya"]
[Black "Smirnov, Valerij"]
[Result "0-1"]
[ECO "B28"]
[WhiteElo "1948"]
[BlackElo "2261"]
[Annotator "NA"]
[PlyCount "95"]
[EventDate "2019.08.15"]
[EventType "swiss"]
[EventCountry "BLR"]
[SourceTitle "playchess.com"]
[Source "ChessBase"]
[SourceQuality "1"]
[TimeControl "900+10"]

1. e4 {[%emt 0:00:00]} c5 {[%emt 0:00:00]} 2. Nf3 {[%emt 0:00:00]} a6 {[%emt 0:00:00]} 3. c3 {[%emt 0:00:07]} e6 {[%emt 0:00:00]} 4. d4 {[%emt 0:00:01]} d5 {[%emt 0:00:00]} 5. exd5 {[%emt 0:00:04]} exd5 {[%emt 0:00:00]} 6. Nbd2 {[%emt 0:00:13]} Nc6 {[%emt 0:00:05]} 7. Be2 {[%emt 0:00:18]} Nf6 {[%emt 0:00:35]} 8. O-O {[%emt 0:00:06]} cxd4 {[%emt 0:00:02]} 9. Nxd4 {[%emt 0:00:02]} Nxd4 {[%emt 0:00:34]} 10. cxd4 {[%emt 0:00:01]} Be7 {[%emt 0:00:07]} 11. Bf3 {[%emt 0:00:10]} O-O {[%emt 0:00:06]} 12. Re1 {[%emt 0:00:04]} Bf5 {[%emt 0:00:23]} 13. Nb3 {[%emt 0:01:19]} Rc8 {[%emt 0:00:39]} 14. Bg5 {[%emt 0:01:07]} h6 {[%emt 0:00:21]} 15. Bxf6 {[%emt 0:02:05]} Bxf6 {[%emt 0:00:04]} 16. Rc1 {[%emt 0:00:10]} Rc4 {[%emt 0:00:33]} 17. Be2 {[%emt 0:00:32]} Rxc1 {[%emt 0:00:16]} 18. Qxc1 {[%emt 0:00:02]} Qd6 {[%emt 0:00:15]} 19. Qd1 {[%emt 0:01:14]} Qb4 {[%emt 0:00:41]} 20. Bf3 {[%emt 0:02:00]} Rd8 {[%emt 0:00:06]} 21. Re2 {[%emt 0:01:11]} b6 {[%emt 0:00:19]} 22. Qe1 {[%emt 0:01:05]} Qxe1+ 23. Rxe1 {[%emt 0:00:02]} a5 {[%emt 0:00:26]} 24. g4 {[%emt 0:00:29]} Bg6 {[%emt 0:00:13]} 25. a4 {[%emt 0:00:16]} Bd3 {[%emt 0:01:19]} 26. Rc1 {[%emt 0:00:14]} Bc4 {[%emt 0:00:05]} 27. Nd2 {[%emt 0:00:05]} Bg5 {[%emt 0:00:08]} 28. Rc2 {[%emt 0:00:06]} Bxd2 {[%emt 0:01:28]} 29. Rxd2 {[%emt 0:00:01]} Bb3 {[%emt 0:00:01]} 30. Bd1 {[%emt 0:00:11]} Bxd1 {[%emt 0:00:19]} 31. Rxd1 {[%emt 0:00:02]} Rc8 {[%emt 0:00:02]} 32. Rd3 {[%emt 0:00:10]} Rc4 {[%emt 0:00:10]} 33. b3 {[%emt 0:00:01]} Rc2 {[%emt 0:00:08]} 34. Kg2 {[%emt 0:00:04]} g5 {[%emt 0:00:22]} 35. Kg3 {[%emt 0:00:03]} Kg7 {[%emt 0:00:03]} 36. f3 {[%emt 0:00:07]} Kg6 {[%emt 0:02:38]} 37. h4 {[%emt 0:03:02]} gxh4+ {[%emt 0:01:15]} 38. Kxh4 {[%emt 0:00:01]} Rc1 {[%emt 0:00:05]} 39. Kg3 {[%emt 0:00:18]} Kg5 {[%emt 0:01:46]} 40. Re3 {[%emt 0:01:57]} Rg1+ {[%emt 0:00:37]} 41. Kf2 {[%emt 0:00:01]} Rb1 {[%emt 0:00:02]} 42. Kg3 {[%emt 0:00:08]} f6 {[%emt 0:00:13]} 43. Rd3 {[%emt 0:00:44]} f5 {[%emt 0:00:39]} 44. gxf5 {[%emt 0:00:10]} Kxf5 {[%emt 0:00:01]} 45. Rc3 {[%emt 0:00:19]} h5 {[%emt 0:00:56]} 46. Re3 {[%emt 0:00:11]} h4+ {[%emt 0:00:05]} 47. Kxh4 {[%emt 0:00:12]} Kf4 {[%emt 0:00:05]} 48. Kh3 {Ke5 Rd3+} 0-1

[Event "Kupreichik Memorial Rapid 2019"]
[Site "Minsk"]
[Date "2019.08.16"]
[Round "7.18"]
[White "Kameko, Aleksandr"]
[Black "Shaban, Alena"]
[Result "1-0"]
[ECO "B04"]
[WhiteElo "2045"]
[BlackElo "2030"]
[Annotator "NA"]
[PlyCount "83"]
[EventDate "2019.08.15"]
[EventType "swiss"]
[EventCountry "BLR"]
[SourceTitle "playchess.com"]
[Source "ChessBase"]
[SourceQuality "1"]
[TimeControl "900+10"]

1. e4 {[%emt 0:00:00]} Nf6 {[%emt 0:00:00]} 2. e5 {[%emt 0:00:00]} Nd5 {[%emt 0:00:00]} 3. d4 {[%emt 0:00:00]} d6 {[%emt 0:00:00]} 4. Nf3 {[%emt 0:00:00]} g6 {[%emt 0:00:00]} 5. h3 {[%emt 0:00:04]} Bg7 {[%emt 0:00:00]} 6. Be2 {[%emt 0:00:10]} O-O {[%emt 0:00:02]} 7. O-O {[%emt 0:00:02]} Nc6 {[%emt 0:00:33]} 8. c4 {[%emt 0:00:14]} Nb6 {[%emt 0:00:02]} 9. exd6 {[%emt 0:00:06]} cxd6 {[%emt 0:00:03]} 10. Nc3 {[%emt 0:00:15]} Bf5 {[%emt 0:02:38]} 11. Be3 {[%emt 0:00:05]} d5 {[%emt 0:00:02]} 12. b3 {[%emt 0:00:46]} h6 {[%emt 0:00:53]} 13. Rc1 {[%emt 0:00:10]} g5 {[%emt 0:00:03]} 14. Qd2 {[%emt 0:00:33]} Be4 {[%emt 0:00:29]} 15. c5 {[%emt 0:00:37]} Nc8 {[%emt 0:00:07]} 16. Rfd1 {[%emt 0:00:26]} e6 {[%emt 0:00:00]} 17. b4 {[%emt 0:01:40]} Nxb4 {[%emt 0:01:16]} 18. Nxe4 dxe4 {[%emt 0:00:01]} 19. Qxb4 {[%emt 0:00:05]} exf3 20. Bxf3 {[%emt 0:00:02]} Rb8 {[%emt 0:00:09]} 21. d5 {[%emt 0:00:24]} exd5 {[%emt 0:00:42]} 22. Rxd5 {[%emt 0:00:54]} a5 {[%emt 0:03:20]} 23. Qg4 {[%emt 0:01:02]} Qe8 {[%emt 0:03:12]} 24. Bxg5 {[%emt 0:03:19]} f5 {[%emt 0:00:02]} 25. Qg3 {[%emt 0:00:02]} Ne7 {[%emt 0:00:57]} 26. Bxh6 {[%emt 0:00:36]} Qg6 {[%emt 0:02:48]} 27. Qxg6 {[%emt 0:00:22]} Nxg6 {[%emt 0:00:01]} 28. Bxg7 {[%emt 0:00:04]} Kxg7 {[%emt 0:00:01]} 29. Rd7+ {[%emt 0:01:33]} Kf6 {[%emt 0:00:30]} 30. Rxb7 {[%emt 0:00:14]} Ne5 {[%emt 0:00:53]} 31. Rxb8 {[%emt 0:01:08]} Rxb8 {[%emt 0:00:01]} 32. c6 {[%emt 0:00:35]} Nxf3+ {[%emt 0:00:58]} 33. gxf3 {[%emt 0:00:01]} Ke5 {[%emt 0:00:05]} 34. c7 {[%emt 0:00:02]} Rc8 {[%emt 0:00:01]} 35. Kg2 {[%emt 0:00:05]} Kf4 {[%emt 0:00:01]} 36. Rc4+ {[%emt 0:00:03]} Kg5 {[%emt 0:00:06]} 37. h4+ {[%emt 0:00:08]} Kh5 {[%emt 0:00:01]} 38. Kh3 {[%emt 0:00:05]} Kg6 {[%emt 0:00:27]} 39. a4 {[%emt 0:00:10]} Kh5 {[%emt 0:00:02]} 40. Rc6 {[%emt 0:00:11]} f4 {[%emt 0:00:09]} 41. Rc5+ {[%emt 0:00:01]} Kh6 {[%emt 0:00:02]} 42. Kg4 {[%emt 0:00:02]} 1-0

[Event "Kupreichik Memorial Rapid 2019"]
[Site "Minsk"]
[Date "2019.08.16"]
[Round "7.19"]
[White "Spizharny, Mikhail"]
[Black "Siniauski, Artsiom"]
[Result "1-0"]
[ECO "C11"]
[WhiteElo "2079"]
[BlackElo "2142"]
[Annotator "NA"]
[PlyCount "105"]
[EventDate "2019.08.15"]
[EventType "swiss"]
[EventCountry "BLR"]
[SourceTitle "playchess.com"]
[Source "ChessBase"]
[SourceQuality "1"]
[TimeControl "900+10"]

1. e4 {[%emt 0:00:00]} e6 {[%emt 0:00:00]} 2. d4 {[%emt 0:00:00]} d5 {[%emt 0:00:00]} 3. Nc3 {[%emt 0:00:00]} Nf6 {[%emt 0:00:00]} 4. e5 {[%emt 0:00:00]} Nfd7 {[%emt 0:00:00]} 5. f4 {[%emt 0:00:00]} c5 {[%emt 0:00:00]} 6. Nf3 {[%emt 0:00:00]} Nc6 {[%emt 0:00:00]} 7. Be3 {[%emt 0:00:00]} cxd4 {[%emt 0:00:03]} 8. Nxd4 {[%emt 0:00:02]} Bc5 {[%emt 0:00:05]} 9. Qd2 {[%emt 0:00:09]} O-O {[%emt 0:00:19]} 10. O-O-O {[%emt 0:00:34]} a6 {[%emt 0:00:02]} 11. Nb3 {[%emt 0:03:24]} Bb4 {[%emt 0:00:12]} 12. Bd3 {[%emt 0:00:50]} a5 {[%emt 0:00:21]} 13. a3 {[%emt 0:00:52]} a4 {[%emt 0:00:44]} 14. Nd4 {[%emt 0:00:41]} Nxd4 {[%emt 0:00:51]} 15. axb4 {[%emt 0:01:31]} Nc6 {[%emt 0:00:50]} 16. Nb5 {[%emt 0:00:35]} f6 {[%emt 0:03:35]} 17. exf6 {[%emt 0:01:30]} Nxf6 {[%emt 0:01:26]} 18. Nd4 {[%emt 0:00:43]} Qc7 {[%emt 0:02:13]} 19. g3 {[%emt 0:02:06]} Bd7 {[%emt 0:00:46]} 20. Nb5 {[%emt 0:01:40]} Qb8 {[%emt 0:01:35]} 21. Bc5 {[%emt 0:00:23]} Rd8 {[%emt 0:00:06]} 22. Bb6 {[%emt 0:00:56]} Rc8 {[%emt 0:00:31]} 23. Rhe1 {[%emt 0:00:10]} Nd8 {[%emt 0:02:43]} 24. Nd4 {[%emt 0:00:43]} Qd6 {[%emt 0:01:13]} 25. Bc5 {[%emt 0:00:14]} Qc7 {[%emt 0:00:01]} 26. Be7 {[%emt 0:00:06]} Qb6 {[%emt 0:00:42]} 27. Qe3 {[%emt 0:01:49]} Kf7 {[%emt 0:00:29]} 28. Bc5 {[%emt 0:00:26]} Qc7 {[%emt 0:00:07]} 29. Nf3 {[%emt 0:00:02]} a3 {[%emt 0:00:13]} 30. bxa3 {[%emt 0:00:20]} b6 {[%emt 0:00:08]} 31. Bd4 {[%emt 0:00:11]} Rxa3 {[%emt 0:00:18]} 32. Kb2 {[%emt 0:00:07]} Rca8 {[%emt 0:00:09]} 33. Ra1 {[%emt 0:00:04]} Qa7 {[%emt 0:00:29]} 34. Bg6+ {[%emt 0:00:13]} hxg6 {[%emt 0:00:15]} 35. Rxa3 {[%emt 0:00:01]} Qxa3+ {[%emt 0:00:13]} 36. Qxa3 {[%emt 0:00:01]} Rxa3 {[%emt 0:00:01]} 37. Kxa3 {[%emt 0:00:02]} b5 {[%emt 0:00:02]} 38. Ne5+ {[%emt 0:00:10]} Ke8 {[%emt 0:00:00]} 39. Nxg6 {[%emt 0:00:28]} Nc6 {[%emt 0:00:01]} 40. c3 {[%emt 0:00:05]} Ne4 {[%emt 0:00:18]} 41. Bxg7 {[%emt 0:00:23]} Kf7 {[%emt 0:00:14]} 42. Ne5+ {[%emt 0:00:01]} Kxg7 {[%emt 0:00:01]} 43. Nxd7 {[%emt 0:00:02]} Nxc3 {[%emt 0:00:39]} 44. Rxe6 {[%emt 0:00:06]} Nd4 {[%emt 0:00:00]} 45. Re7+ {[%emt 0:00:07]} Kh6 {[%emt 0:00:06]} 46. Ne5 {[%emt 0:00:15]} Ne4 {[%emt 0:00:16]} 47. g4 {[%emt 0:00:19]} Nc2+ {[%emt 0:00:16]} 48. Kb2 {[%emt 0:00:11]} Nxb4 {[%emt 0:00:04]} 49. g5+ {[%emt 0:00:03]} Nxg5 {[%emt 0:00:10]} 50. fxg5+ {[%emt 0:00:02]} Kxg5 {[%emt 0:00:01]} 51. Rb7 {[%emt 0:00:11]} Kf4 {[%emt 0:00:20]} 52. Rxb5 {[%emt 0:00:06]} Na6 {[%emt 0:00:02]} 53. Nd3+ {[%emt 0:00:05]} 1-0

[Event "Kupreichik Memorial Rapid 2019"]
[Site "Minsk"]
[Date "2019.08.16"]
[Round "7.20"]
[White "Tyurin, Artem"]
[Black "Mochalov, Evgeny V"]
[Result "0-1"]
[ECO "A34"]
[WhiteElo "2057"]
[BlackElo "2374"]
[Annotator "NA"]
[PlyCount "80"]
[EventDate "2019.08.15"]
[EventType "swiss"]
[EventCountry "BLR"]
[SourceTitle "playchess.com"]
[Source "ChessBase"]
[SourceQuality "1"]
[TimeControl "900+10"]

1. c4 {[%emt 0:00:00]} c5 {[%emt 0:00:05]} 2. Nc3 {[%emt 0:00:00]} g6 {[%emt 0:00:01]} 3. Nf3 {[%emt 0:00:01]} Bg7 {[%emt 0:00:02]} 4. e3 {[%emt 0:00:03]} Nf6 {[%emt 0:00:02]} 5. d4 {[%emt 0:00:02]} O-O {[%emt 0:00:11]} 6. Bd3 {[%emt 0:00:11]} cxd4 {[%emt 0:01:31]} 7. exd4 {[%emt 0:00:06]} d5 {[%emt 0:00:10]} 8. h3 {[%emt 0:00:48]} Nc6 {[%emt 0:01:55]} 9. O-O {[%emt 0:00:09]} dxc4 {[%emt 0:02:27]} 10. Bxc4 {[%emt 0:00:02]} Na5 {[%emt 0:00:07]} 11. Bd3 {[%emt 0:00:33]} Be6 {[%emt 0:00:23]} 12. Re1 {[%emt 0:00:10]} Bc4 {[%emt 0:00:36]} 13. Bxc4 {[%emt 0:01:00]} Nxc4 {[%emt 0:00:02]} 14. Qe2 {[%emt 0:00:01]} Rc8 {[%emt 0:02:49]} 15. Bf4 {[%emt 0:03:34]} e6 {[%emt 0:00:43]} 16. Be5 {[%emt 0:03:41]} Qb6 {[%emt 0:02:24]} 17. Rab1 {[%emt 0:01:16]} Rfd8 {[%emt 0:00:40]} 18. Na4 {[%emt 0:01:52]} Qb4 {[%emt 0:00:33]} 19. Nc3 {[%emt 0:00:56]} Nxe5 {[%emt 0:00:52]} 20. dxe5 {[%emt 0:00:09]} Nd5 {[%emt 0:00:19]} 21. Nxd5 {[%emt 0:00:52]} Rxd5 {[%emt 0:00:02]} 22. Rbc1 {[%emt 0:00:46]} Rdc5 {[%emt 0:00:55]} 23. Rxc5 {[%emt 0:00:27]} Qxc5 {[%emt 0:00:05]} 24. Qe4 {[%emt 0:00:11]} Qc6 {[%emt 0:00:40]} 25. Qf4 {[%emt 0:00:15]} h6 {[%emt 0:00:11]} 26. Rd1 {[%emt 0:00:28]} g5 {[%emt 0:00:27]} 27. Qe3 {[%emt 0:00:23]} Qc2 {[%emt 0:00:31]} 28. Qd4 {[%emt 0:00:30]} Bf8 {[%emt 0:00:11]} 29. Rf1 {[%emt 0:00:53]} b6 {[%emt 0:00:19]} 30. Nd2 {[%emt 0:00:27]} Qc5 {[%emt 0:00:23]} 31. Qxc5 {[%emt 0:00:12]} Rxc5 {[%emt 0:00:06]} 32. Re1 {[%emt 0:00:07]} Bg7 {[%emt 0:00:10]} 33. Nf3 {[%emt 0:00:08]} Rc2 {[%emt 0:00:05]} 34. Rd1 {[%emt 0:00:09]} Bf8 {[%emt 0:00:11]} 35. Nd2 {[%emt 0:00:13]} Rxb2 {[%emt 0:00:05]} 36. Ne4 {[%emt 0:00:02]} Bg7 {[%emt 0:00:18]} 37. Rd8+ {[%emt 0:00:03]} Kh7 {[%emt 0:00:01]} 38. Rd7 {[%emt 0:00:03]} Bxe5 {[%emt 0:00:08]} 39. Rxf7+ {[%emt 0:00:04]} Kg6 {[%emt 0:00:00]} 40. Rxa7 {[%emt 0:00:02]} Rb1# {[%emt 0:00:02]} 0-1

[Event "Kupreichik Memorial Rapid 2019"]
[Site "Minsk"]
[Date "2019.08.16"]
[Round "7.21"]
[White "Leinov, Roman"]
[Black "Zverev, Lev"]
[Result "1/2-1/2"]
[ECO "A06"]
[WhiteElo "2189"]
[BlackElo "1881"]
[Annotator "NA"]
[PlyCount "94"]
[EventDate "2019.08.15"]
[EventType "swiss"]
[EventCountry "BLR"]
[SourceTitle "playchess.com"]
[Source "ChessBase"]
[SourceQuality "1"]
[TimeControl "900+10"]

1. Nf3 {[%emt 0:00:00]} d5 {[%emt 0:00:00]} 2. g3 {[%emt 0:00:00]} e6 {[%emt 0:00:00]} 3. Bg2 {[%emt 0:00:00]} Nf6 {[%emt 0:00:00]} 4. O-O {[%emt 0:00:00]} Be7 {[%emt 0:00:00]} 5. d4 {[%emt 0:00:00]} O-O {[%emt 0:00:00]} 6. c4 {[%emt 0:00:01]} b6 {[%emt 0:00:00]} 7. cxd5 {[%emt 0:00:15]} exd5 {[%emt 0:00:00]} 8. Nc3 {[%emt 0:00:03]} Bb7 {[%emt 0:00:00]} 9. b3 {[%emt 0:00:14]} Nbd7 {[%emt 0:00:02]} 10. Bb2 {[%emt 0:00:02]} c5 {[%emt 0:00:04]} 11. Rc1 {[%emt 0:00:15]} Rc8 {[%emt 0:00:06]} 12. Ne5 {[%emt 0:00:19]} cxd4 {[%emt 0:00:34]} 13. Qxd4 {[%emt 0:00:53]} Bc5 {[%emt 0:00:08]} 14. Qf4 {[%emt 0:00:02]} Re8 {[%emt 0:01:05]} 15. Nxd7 {[%emt 0:00:55]} Qxd7 {[%emt 0:00:01]} 16. e3 {[%emt 0:00:53]} Ne4 {[%emt 0:00:32]} 17. Rfd1 {[%emt 0:00:48]} Nxf2 {[%emt 0:00:55]} 18. Rxd5 {[%emt 0:03:02]} Bxd5 {[%emt 0:00:17]} 19. Nxd5 {[%emt 0:00:04]} Nh3+ {[%emt 0:04:43]} 20. Bxh3 {[%emt 0:00:37]} Qxd5 {[%emt 0:00:11]} 21. b4 {[%emt 0:02:30]} Qd2 {[%emt 0:01:32]} 22. bxc5 {[%emt 0:00:18]} Qxb2 {[%emt 0:00:08]} 23. Rf1 {[%emt 0:00:03]} Ra8 {[%emt 0:00:53]} 24. Qxf7+ {[%emt 0:00:28]} Kh8 {[%emt 0:00:00]} 25. Bd7 {[%emt 0:00:38]} Rg8 {[%emt 0:00:03]} 26. c6 {[%emt 0:00:09]} Qc3 {[%emt 0:00:05]} 27. Qf4 {[%emt 0:01:07]} Qc5 {[%emt 0:00:35]} 28. Qd4 {[%emt 0:00:13]} Qc2 {[%emt 0:00:33]} 29. Qd6 {[%emt 0:01:41]} Qe2 {[%emt 0:02:15]} 30. Qe6 {[%emt 0:00:49]} Raf8 {[%emt 0:00:27]} 31. Rf4 {[%emt 0:00:04]} Qd2 {[%emt 0:02:25]} 32. h4 {[%emt 0:02:15]} h6 {[%emt 0:00:59]} 33. Qe7 {[%emt 0:00:25]} Qe1+ {[%emt 0:00:09]} 34. Kg2 {[%emt 0:00:04]} Rxf4 {[%emt 0:00:10]} 35. gxf4 {[%emt 0:00:02]} Qe2+ {[%emt 0:01:44]} 36. Kg3 {[%emt 0:00:03]} Qe1+ {[%emt 0:00:03]} 37. Kf3 {[%emt 0:00:10]} Qh1+ {[%emt 0:00:03]} 38. Kg4 {[%emt 0:01:01]} g6 {[%emt 0:00:19]} 39. Kg3 {[%emt 0:00:32]} Qe1+ {[%emt 0:00:14]} 40. Kf3 {[%emt 0:00:03]} Qd1+ {[%emt 0:00:02]} 41. Kg3 {[%emt 0:00:13]} Qg1+ {[%emt 0:00:05]} 42. Kf3 {[%emt 0:00:01]} Qh1+ {[%emt 0:00:02]} 43. Kg3 {[%emt 0:00:04]} Qg1+ {[%emt 0:00:02]} 44. Kf3 {[%emt 0:00:02]} Qh1+ {[%emt 0:00:05]} 45. Kg3 {[%emt 0:00:06]} Qg1+ {[%emt 0:00:03]} 46. Kf3 {[%emt 0:00:02]} Qh1+ {[%emt 0:00:01]} 47. Kg3 {[%emt 0:00:01]} Qg1+ {[%emt 0:00:01]} 1/2-1/2